bitfinex/quotes_ETHUSD_20250219
["timestamp","ask_amount","ask_price","bid_price","bid_amount"]
[1739975388869,0.1478194,2724.6,2724.2,1.09904589]
[1739975389044,0.1478194,2724.6,2724.3,0.04467561]
[1739975389247,0.1478194,2724.6,2724.3,0.476407]
[1739975389545,0.1478194,2724.6,2724.4,0.04456289]
[1739975389921,0.1478194,2724.6,2724.5,0.8257]
[1739975390267,0.1478194,2724.6,2724.5,0.87015018]
[1739975391465,0.1478194,2724.6,2724.5,4.54054018]
[1739975391670,0.1478194,2724.6,2724.5,5.37458607]
[1739975392575,0.1478194,2724.6,2724.5,1.70419607]
[1739975392763,0.1478194,2724.6,2724.5,0.87015018]
[1739975395749,0.1478194,2724.6,2724.5,0.04445018]
[1739975395951,3.8180794,2724.6,2724.5,0.04445018]
[1739975396873,0.1478194,2724.6,2724.5,0.04445018]
[1739975397167,0.1478194,2724.6,2724.3,3.93664]
[1739975397341,0.1478194,2724.6,2724.5,0.04367718]
[1739975398265,0.1478194,2724.6,2724.3,0.266]
[1739975398438,0.1478194,2724.6,2724.5,0.04367718]
[1739975398640,0.1478194,2724.6,2724.3,0.266]
[1739975398925,0.1478194,2724.6,2724.4,3.71422989]
[1739975399129,0.1478194,2724.6,2724.5,1.57808899]
[1739975399433,0.1478194,2724.6,2724.5,5.29215617]
[1739975399756,0.1478194,2724.6,2724.5,1.62176617]
[1739975399950,0.1478194,2724.6,2724.5,5.29215617]
[1739975400787,0.1478194,2724.6,2724.5,0.04367718]
[1739975401389,0.1478194,2724.6,2724.5,0.87397718]
[1739975401982,0.1478194,2724.6,2724.5,4.54436718]
[1739975402431,0.1478194,2724.6,2724.5,0.87397718]
[1739975402626,0.1478194,2724.6,2724.5,0.04367718]
[1739975402827,3.8180794,2724.6,2724.5,0.04367718]
[1739975403093,4.64513534,2724.6,2724.5,0.04367718]
[1739975403243,5.42743534,2724.6,2724.5,0.04367718]
[1739975405461,4.6003794,2724.6,2724.5,0.04367718]
[1739975408612,0.1478194,2724.6,2724.5,0.04367718]
[1739975409492,3.8180794,2724.6,2724.5,0.04367718]
[1739975409663,0.1478194,2724.6,2724.5,0.04367718]
[1739975411609,0.1478194,2724.6,2724.5,3.71406718]
[1739975411808,0.1478194,2724.6,2724.5,4.5323579]
[1739975412167,0.1478194,2724.6,2724.5,0.8619679]
[1739975412576,0.1478194,2724.6,2724.5,3.71406718]
[1739975412791,0.1478194,2724.6,2724.5,0.04367718]
[1739975413517,3.8180794,2724.6,2724.5,0.04367718]
[1739975415214,0.1478194,2724.6,2724.5,0.04367718]
[1739975416184,0.1478194,2724.6,2724.5,3.71406718]
[1739975416389,0.1478194,2724.6,2724.5,4.5305939]
[1739975417088,0.1478194,2724.6,2724.5,5.3336939]
[1739975417718,0.1478194,2724.6,2724.5,1.6633039]
[1739975417933,0.1478194,2724.6,2724.5,0.04367718]
[1739975418293,0.1478194,2724.6,2724.4,0.271]
[1739975418490,0.1478194,2724.6,2724.5,0.05332034]
[1739975418685,4.5810794,2724.6,2724.5,0.05332034]
[1739975418919,4.5810794,2724.6,2724.1,3.67081]
[1739975418920,0.9108194,2724.6,2724.1,3.67081]
[1739975419120,0.1478194,2724.6,2724.5,0.04520146]
[1739975419382,0.1478194,2724.6,2724.5,0.7574]
[1739975419635,0.1478194,2724.6,2724.5,4.47299146]
[1739975420482,0.1478194,2724.6,2724.5,0.80260146]
[1739975420783,0.1478194,2724.6,2724.5,4.47299146]
[1739975420985,0.1478194,2724.6,2724.5,8.31443061]
[1739975422334,0.1478194,2724.6,2724.5,8.86443061]
[1739975426207,0.8182,2726.3,2725.3,0.7808]
[1739975426403,0.8182,2726.3,2725.7,3.66874]
[1739975426609,3.66826,2726.1,2725.5,3.0]
[1739975426815,0.8182,2726.3,2725.8,0.0510583]
[1739975426816,3.66824,2726.2,2725.8,0.0510583]
[1739975427024,3.66831,2726.1,2725.5,3.0]
[1739975427340,6.66761,2726.6,2725.3,0.7808]
[1739975427485,3.6694,2725.3,2724.9,0.7829]
[1739975427683,3.66932,2725.3,2724.6,0.7829]
[1739975427887,0.7873,2725.6,2724.9,3.66974]
[1739975428100,0.445615,2725.6,2725.2,4.45595]
[1739975428299,4.47404,2725.9,2725.2,0.7866]
[1739975428493,4.47404,2725.9,2725.2,4.45603]
[1739975428680,3.66874,2725.8,2725.2,4.45603]
[1739975429084,3.6688,2725.7,2725.2,0.7866]
[1739975429285,0.8054,2725.9,2725.2,0.7866]
[1739975429484,3.6689,2725.7,2725.2,0.7866]
[1739975429699,0.44743,2725.7,2724.9,0.7759]
[1739975429928,3.66939,2725.3,2725.0,0.272]
[1739975430132,7.33879,2725.3,2724.9,0.272]
[1739975430294,3.66939,2725.3,2724.9,0.272]
[1739975430495,3.66994,2724.9,2724.4,0.8159]
[1739975430710,7.33935,2725.1,2724.4,1.0879]
[1739975430945,7.33991,2724.9,2724.4,4.0879]
[1739975431116,3.67008,2724.8,2724.4,3.8159]
[1739975431438,3.66993,2724.9,2724.4,3.8159]
[1739975431588,3.66961,2725.1,2724.4,7.48633]
[1739975431793,3.66933,2725.3,2724.6,3.67017]
[1739975431993,3.66912,2725.5,2724.8,0.809]
[1739975432234,3.66926,2725.4,2724.8,0.809]
[1739975432421,0.7799,2725.7,2724.8,0.809]
[1739975432422,3.66934,2725.3,2724.8,0.809]
[1739975432730,3.66959,2725.1,2724.8,0.809]
[1739975432940,3.66959,2725.1,2724.5,0.7706]
[1739975433142,0.444869,2725.0,2724.5,1.0436]
[1739975433301,0.7791,2725.2,2724.5,1.0436]
[1739975433510,0.7791,2725.2,2724.6,3.6702]
[1739975433710,0.7791,2725.2,2724.5,4.71391]
[1739975433915,0.7791,2725.2,2724.6,3.67018]
[1739975434113,3.66959,2725.1,2724.5,1.814991]
[1739975434312,3.66993,2724.9,2724.5,1.0436]
[1739975434761,3.66935,2725.3,2725.2,5.532622]
[1739975435001,6.66935,2725.3,2725.2,5.532622]
[1739975437610,4.47725,2725.3,2725.2,5.58442758]
[1739975437810,4.47725,2725.3,2725.2,5.532622]
[1739975438130,4.47725,2725.3,2725.2,5.58442758]
[1739975438537,0.7763,2725.6,2725.2,5.58442758]
[1739975438701,3.6687,2725.8,2725.2,5.58442758]
[1739975438900,5.178717,2725.8,2725.2,5.58442758]
[1739975439102,3.66878,2725.7,2725.2,5.58442758]
[1739975439326,5.178717,2725.8,2725.2,5.58442758]
[1739975439640,1.510017,2725.8,2725.2,5.58442758]
[1739975439801,3.66851,2725.9,2725.3,0.7952]
[1739975440219,3.66865,2725.8,2725.4,0.05131312]
[1739975440753,3.66841,2726.0,2725.4,0.05131312]
[1739975440754,7.33696,2726.0,2725.4,0.05131312]
[1739975440905,3.66846,2726.0,2725.4,0.05131312]
[1739975441555,0.7975,2726.1,2725.4,0.05131312]
[1739975441907,3.6689,2725.7,2725.4,0.05131312]
[1739975442104,0.446564,2726.0,2725.4,0.05131312]
[1739975442315,3.66833,2726.1,2725.5,3.66892]
[1739975442514,3.66848,2726.0,2725.5,0.05116977]
[1739975442715,0.8079,2726.3,2725.5,0.05116977]
[1739975443040,3.66912,2725.5,2725.2,5.805622]
[1739975443227,4.036122,2725.4,2725.2,5.805622]
[1739975443425,7.33829,2725.5,2725.2,5.805622]
[1739975443626,7.33829,2725.5,2725.2,5.532622]
[1739975443830,3.66932,2725.3,2725.2,5.532622]
[1739975446477,3.66919,2725.4,2725.2,5.532622]
[1739975446786,0.7539,2726.0,2725.2,5.532622]
[1739975447076,3.66906,2725.5,2725.2,5.532622]
[1739975447259,3.66928,2725.4,2725.2,5.532622]
[1739975447442,3.66906,2725.5,2725.2,5.532622]
[1739975447644,7.33821,2725.5,2725.2,5.532622]
[1739975447880,3.66924,2725.4,2725.2,5.532622]
[1739975448376,3.66906,2725.5,2725.2,5.532622]
[1739975448581,3.66883,2725.7,2725.2,5.532622]
[1739975448761,4.402572,2725.7,2725.2,5.532622]
[1739975448961,0.733742,2725.7,2725.2,9.202022]
[1739975449147,3.66893,2725.6,2725.2,5.532622]
[1739975449537,3.66878,2725.8,2725.2,5.532622]
[1739975449851,3.66904,2725.6,2725.2,5.532622]
[1739975450060,3.66874,2725.8,2725.2,5.532622]
[1739975450266,3.66901,2725.6,2725.2,5.532622]
[1739975450670,3.66928,2725.4,2725.2,5.532622]
[1739975451150,3.66932,2725.3,2725.2,5.532622]
[1739975451684,3.66918,2725.4,2725.2,5.58395644]
[1739975452049,4.035931,2725.6,2725.2,5.58395644]
[1739975452254,4.035921,2725.6,2725.2,5.58395644]
[1739975452682,0.366901,2725.6,2725.2,5.58395644]
[1739975452886,4.035821,2725.6,2725.2,5.58395644]
[1739975453195,0.771,2725.7,2725.2,5.58395644]
[1739975453707,0.771,2725.7,2725.3,0.833]
[1739975453908,4.50162,2725.9,2725.3,0.88419108]
[1739975454204,5.04149852,2727.6,2725.3,0.88419108]
[1739975454205,3.66878,2725.7,2725.3,0.88419108]
[1739975454892,3.66892,2725.6,2725.3,0.88419108]
[1739975455209,3.66878,2725.7,2725.3,0.88419108]
[1739975455210,3.66887,2725.7,2725.3,0.88419108]
[1739975455511,3.66861,2725.9,2725.3,0.88419108]
[1739975455692,3.66875,2725.8,2725.3,0.88419108]
[1739975456086,4.118711,2725.9,2725.3,4.55348108]
[1739975456277,3.66829,2726.1,2725.4,4.51269084]
[1739975456469,3.66829,2726.1,2725.5,0.05098397]
[1739975456710,3.66861,2725.9,2725.5,0.05098397]
[1739975456875,3.66874,2725.8,2725.5,0.05098397]
[1739975457207,3.66861,2725.9,2725.5,0.05098397]
[1739975457523,3.66873,2725.8,2725.5,0.05098397]
[1739975458170,3.66861,2725.9,2725.5,0.05098397]
[1739975458671,3.66887,2725.7,2725.5,0.05098397]
[1739975458873,0.8004,2725.8,2725.5,0.05098397]
[1739975459067,4.035451,2725.9,2725.5,0.05098397]
[1739975459316,3.6689,2725.7,2725.5,0.05098397]
[1739975459504,3.66891,2725.6,2725.5,0.05098397]
[1739975459684,4.40268,2725.6,2725.2,6.598822]
[1739975459924,3.66905,2725.5,2725.3,0.0511579]
[1739975460133,3.66905,2725.5,2725.2,6.326822]
[1739975460371,4.45385,2725.5,2725.4,0.05110078]
[1739975460658,4.45385,2725.5,2725.2,5.532622]
[1739975460659,3.66932,2725.3,2725.2,5.532622]
[1739975460844,4.481652,2725.3,2725.2,5.532622]
[1739975462153,3.66895,2725.6,2725.2,5.532622]
[1739975462459,3.66895,2725.6,2725.2,6.312522]
[1739975462671,3.66927,2725.4,2725.2,6.312522]
[1739975462842,3.66932,2725.3,2725.2,5.532622]
[1739975464377,4.46652,2725.3,2725.2,5.532622]
[1739975464663,8.830099,2725.3,2725.2,4.58315469]
[1739975464833,8.280099,2725.3,2725.2,4.58315469]
[1739975465835,8.830099,2725.3,2725.2,4.58315469]
[1739975466464,8.280099,2725.3,2725.2,4.58315469]
[1739975467529,5.280099,2725.3,2725.2,4.58315469]
[1739975467873,5.280099,2725.3,2725.2,4.62786062]
[1739975469141,5.280099,2725.3,2725.2,4.58315469]
[1739975470204,8.830099,2725.3,2725.2,4.69e-06]
[1739975470499,3.67093,2724.1,2724.0,0.273]
[1739975470796,3.67096,2724.1,2724.0,0.04593766]
[1739975471091,3.67096,2724.1,2723.6,8.251]
[1739975471092,3.67038,2724.6,2723.9,4.45318]
[1739975471319,0.8035,2725.5,2724.5,0.7874]
[1739975471442,3.66934,2725.3,2724.5,0.7874]
[1739975471642,0.8035,2725.5,2724.7,3.6701]
[1739975471880,8.16099,2725.8,2724.9,3.66977]
[1739975472195,3.6688,2725.7,2725.0,4.50702218]
[1739975472342,4.09274533,2726.1,2725.0,0.83737218]
[1739975472542,3.66837,2726.0,2725.0,0.83737218]
[1739975472872,7.33826,2725.5,2725.0,0.83737218]
[1739975473072,3.66927,2725.4,2725.0,0.83737218]
[1739975473272,3.66886,2725.7,2725.0,0.83737218]
[1739975473442,0.366854,2725.8,2725.2,3.66942]
[1739975473641,3.66862,2725.9,2725.3,0.7976]
[1739975473867,3.66862,2725.9,2725.3,0.85015815]
[1739975474272,3.66914,2725.5,2725.3,0.85015815]
[1739975474587,3.6686,2725.9,2725.3,0.85015815]
[1739975474791,4.11781,2725.9,2725.3,0.85015815]
[1739975475143,4.49175,2726.1,2725.3,0.85015815]
[1739975475497,0.8332,2726.4,2725.7,4.47081]
[1739975475699,0.8332,2726.7,2725.9,3.66839]
[1739975475982,3.66726,2726.9,2726.1,3.66823]
[1739975476185,3.66745,2726.7,2726.0,4.8043011]
[1739975476485,3.66725,2726.9,2726.2,0.0504124]
[1739975476689,0.444025,2726.8,2726.1,0.05055567]
[1739975476996,3.66738,2726.8,2726.2,0.0504124]
[1739975477157,3.66772,2726.5,2726.0,1.0851]
[1739975477354,3.66784,2726.4,2726.3,0.05026914]
[1739975477568,3.66784,2726.4,2725.7,1.0322]
[1739975477784,3.66784,2726.4,2725.7,4.70097]
[1739975478088,0.8023,2726.8,2725.8,0.05425252]
[1739975478386,3.66767,2726.6,2725.8,3.72280252]
[1739975478689,0.1478194,2727.3,2725.9,0.83708299]
[1739975478910,0.1478194,2727.3,2726.5,0.8004]
[1739975479104,0.1478194,2727.3,2726.8,3.66728]
[1739975479306,0.1478194,2727.3,2727.0,3.66693]
[1739975479460,0.1478194,2727.3,2727.1,3.75564264]
[1739975479664,0.1478194,2727.3,2727.2,4.46756]
[1739975479896,0.1478194,2727.3,2727.2,4.30543277]
[1739975480058,0.1478194,2727.3,2727.2,8.10623277]
[1739975480261,1.03038396,2729.4,2727.9,3.66569]
[1739975480463,3.66468,2728.8,2728.1,0.778]
[1739975480674,3.66529,2728.3,2728.0,0.278]
[1739975480877,3.66565,2728.1,2727.7,1.0485]
[1739975481304,3.66534,2728.3,2727.7,0.7695]
[1739975481505,4.398576,2728.2,2727.7,0.7695]
[1739975481664,3.6658,2728.0,2727.7,0.7695]
[1739975481867,3.66595,2727.8,2727.7,0.7695]
[1739975482208,3.6661,2727.7,2727.3,0.279]
[1739975482405,3.66608,2727.8,2727.1,0.279]
[1739975482631,0.7548,2728.6,2727.1,0.279]
[1739975482632,3.6651,2728.5,2727.6,3.66621]
[1739975482793,3.66519,2728.4,2727.7,0.8329]
[1739975483410,3.6653,2728.3,2727.7,0.86955662]
[1739975483575,3.6651,2728.5,2727.7,0.8329]
[1739975483981,4.46611,2728.9,2727.7,0.8329]
[1739975484177,3.66505,2728.5,2727.7,0.8329]
[1739975484416,3.66476,2728.7,2727.8,3.66594]
[1739975484600,3.66476,2728.7,2727.9,0.279]
[1739975484809,0.446611,2728.8,2728.0,0.82945124]
[1739975484962,0.7752,2729.3,2728.0,4.45839]
[1739975485168,3.66433,2729.1,2728.0,4.45839]
[1739975485369,3.66433,2729.1,2727.9,0.279]
[1739975485370,3.66437,2729.0,2728.1,5.03094]
[1739975485680,3.66433,2729.1,2728.2,3.66539]
[1739975485877,3.66433,2729.1,2728.1,5.03094]
[1739975486078,3.66368,2729.5,2728.6,3.66476]
[1739975486421,4.87284929,2730.0,2728.7,0.06143295]
[1739975486606,3.66444,2729.0,2728.7,0.06143295]
[1739975486805,3.66444,2729.0,2728.5,0.279]
[1739975486978,3.66444,2729.0,2728.8,0.06123633]
[1739975487315,3.66444,2729.0,2727.9,3.66576]
[1739975487316,3.66471,2728.8,2728.0,0.28]
[1739975487495,3.66485,2728.7,2728.0,0.28]
[1739975487705,0.366444,2728.9,2728.1,0.06979915]
[1739975487904,3.66492,2728.6,2728.1,0.06979915]
[1739975488628,3.66464,2728.8,2728.1,0.06979915]
[1739975488782,0.4031084,2728.7,2728.1,0.06979915]
[1739975489994,3.66525,2728.4,2728.1,0.06979915]
[1739975490325,3.66542,2728.2,2728.1,0.06979915]
[1739975490524,3.66542,2728.2,2727.2,12.305282]
[1739975490525,3.66622,2727.6,2727.5,0.8237]
[1739975490831,3.66586,2727.9,2727.1,0.7943]
[1739975490982,3.66676,2727.2,2726.6,0.7943]
[1739975491186,4.033596,2727.1,2726.6,0.7943]
[1739975491525,3.66716,2726.9,2726.6,0.7943]
[1739975491711,3.66731,2726.8,2726.6,0.7943]
[1739975492221,3.66743,2726.7,2726.6,0.7943]
[1739975492424,3.66731,2726.8,2726.6,0.7943]
[1739975492587,3.66705,2727.0,2726.6,0.7943]
[1739975492796,3.66738,2726.8,2726.6,0.7943]
[1739975493149,0.4033726,2726.9,2726.6,0.7943]
[1739975493639,0.366676,2727.1,2726.6,0.7943]
[1739975493826,3.66709,2727.0,2726.6,0.7943]
[1739975494020,0.366676,2727.1,2726.6,0.7943]
[1739975494339,3.66685,2727.2,2726.6,0.7943]
[1739975494722,3.66652,2727.4,2726.6,0.7943]
[1739975494927,3.66596,2727.8,2726.6,0.7943]
[1739975495100,7.33098,2728.2,2727.3,3.66651]
[1739975495306,7.33098,2728.2,2726.7,3.58666549]
[1739975495307,3.66518,2728.4,2727.5,4.47426]
[1739975495652,0.366518,2728.3,2727.7,3.66608]
[1739975496005,0.366518,2728.3,2727.7,7.33206]
[1739975496229,3.66467,2728.8,2728.0,0.7777]
[1739975496537,3.66487,2728.7,2728.0,0.7777]
[1739975497300,3.66452,2728.9,2728.2,3.66541]
[1739975497503,3.66462,2728.8,2728.3,0.281]
[1739975497742,0.732914,2728.7,2728.3,0.281]
[1739975497942,3.66423,2729.1,2728.3,0.281]
[1739975498142,3.66451,2728.9,2728.3,0.281]
[1739975498688,3.66477,2728.7,2728.4,0.06009204]
[1739975499179,3.66451,2728.9,2728.4,0.06009204]
[1739975499485,3.66436,2729.0,2728.4,3.72522204]
[1739975499637,0.732864,2729.0,2728.4,0.06009204]
[1739975499841,3.66429,2729.1,2728.4,0.06009204]
[1739975500095,3.66394,2729.3,2728.5,3.66501]
[1739975500375,3.66421,2729.1,2728.6,0.7913]
[1739975501143,3.66401,2729.3,2728.6,0.7913]
[1739975501348,3.66372,2729.5,2728.6,0.7913]
[1739975501556,3.66372,2729.5,2728.7,0.445619]
[1739975501891,3.66362,2729.6,2728.7,0.445619]
[1739975502061,3.66339,2729.8,2729.0,3.66427]
[1739975502262,3.66337,2729.8,2728.9,3.66439]
[1739975502451,3.66349,2729.7,2728.9,3.66439]
[1739975502878,3.7981,2730.1,2728.6,0.7913]
[1739975503066,3.66378,2729.5,2728.7,4.110262]
[1739975503388,3.66349,2729.7,2728.9,3.6644]
[1739975503685,3.66368,2729.5,2728.7,4.110262]
[1739975503985,3.66387,2729.4,2728.7,0.445622]
[1739975504199,3.66399,2729.3,2728.7,0.445622]
[1739975504492,3.66409,2729.2,2728.6,0.7913]
[1739975504787,7.32777,2729.4,2728.7,0.28]
[1739975504996,3.66397,2729.3,2728.7,0.28]
[1739975505311,3.66383,2729.4,2728.7,0.28]
[1739975505506,0.39459194,2729.9,2728.6,1.0723]
[1739975505801,3.66415,2729.2,2728.6,1.0723]
[1739975506003,3.66435,2729.0,2728.6,1.0723]
[1739975506300,3.66428,2729.1,2728.6,0.7913]
[1739975506465,3.66437,2729.0,2728.6,0.7913]
[1739975506670,3.66415,2729.2,2728.6,0.7913]
[1739975506983,3.66452,2728.9,2728.6,1.265131]
[1739975507186,3.66452,2728.9,2728.6,0.7913]
[1739975507384,0.7914,2729.4,2728.6,0.7913]
[1739975507554,3.66408,2729.2,2728.6,0.7913]
[1739975507757,0.7914,2729.4,2728.6,0.7913]
[1739975508007,3.66387,2729.4,2728.6,0.7913]
[1739975508156,3.66373,2729.5,2728.8,3.66454]
[1739975508356,3.66373,2729.5,2728.9,0.647454]
[1739975508853,3.66373,2729.5,2728.9,0.281]
[1739975509055,3.66383,2729.4,2728.9,0.281]
[1739975509257,3.66394,2729.3,2728.9,0.281]
[1739975509754,3.66394,2729.3,2728.6,4.45607]
[1739975510053,3.66421,2729.1,2728.6,0.7913]
[1739975510496,3.66396,2729.3,2728.6,0.7913]
[1739975510497,3.66416,2729.2,2728.6,4.45617]
[1739975510688,3.66421,2729.1,2728.7,0.473717]
[1739975510889,3.66396,2729.3,2728.7,0.473717]
[1739975511093,3.6641,2729.2,2728.7,0.473717]
[1739975511256,3.66373,2729.5,2728.7,0.473717]
[1739975511460,3.66345,2729.7,2728.8,3.66449]
[1739975511788,3.66345,2729.7,2728.9,7.7426107]
[1739975511789,3.66357,2729.6,2728.9,7.7426107]
[1739975511974,3.66357,2729.6,2728.9,4.0782107]
[1739975512183,3.66364,2729.6,2728.9,7.7426107]
[1739975512380,3.66345,2729.7,2728.9,4.0782107]
[1739975512581,3.66313,2729.9,2728.9,0.4138207]
[1739975512824,3.66402,2729.3,2728.6,4.45617]
[1739975513139,3.66402,2729.3,2728.7,3.66466]
[1739975513298,3.66402,2729.3,2728.6,4.45617]
[1739975513503,3.66402,2729.3,2728.7,3.66471]
[1739975513704,3.6636,2729.6,2728.6,3.7913]
[1739975513906,3.6636,2729.6,2728.9,7.32894]
[1739975514108,4.6334694,2730.0,2728.7,4.07192]
[1739975514323,3.0,2729.9,2728.7,0.40723]
[1739975514514,3.66421,2729.1,2728.6,0.7913]
[1739975515008,3.66436,2729.0,2728.6,0.7913]
[1739975515648,0.9704194,2730.0,2729.1,0.8212]
[1739975515808,3.66347,2729.7,2729.1,0.8212]
[1739975516154,3.6636,2729.6,2729.1,0.8212]
[1739975516319,3.6632,2729.9,2729.1,1.269767]
[1739975516653,3.6632,2729.9,2729.2,3.66403]
[1739975516998,3.66327,2729.8,2729.2,0.281]
[1739975517198,6.8108294,2730.0,2729.2,0.281]
[1739975517436,0.1478194,2730.0,2729.4,3.6638]
[1739975517598,0.1478194,2730.0,2729.2,0.281]
[1739975517819,3.8109194,2730.0,2729.2,0.281]
[1739975518017,0.1478194,2730.0,2729.2,0.281]
[1739975518361,0.1478194,2730.0,2729.1,0.8212]
[1739975518587,3.66391,2729.4,2728.8,1.1088]
[1739975518711,3.66327,2729.8,2728.8,0.8278]
[1739975518916,3.66375,2729.5,2728.8,0.8278]
[1739975519226,7.32701,2729.7,2728.9,3.66447]
[1739975519440,3.66341,2729.7,2729.0,0.449227]
[1739975519649,3.6636,2729.6,2729.0,0.449227]
[1739975519951,3.6636,2729.6,2729.0,4.113527]
[1739975520345,3.66365,2729.6,2729.0,0.449227]
[1739975520542,3.66327,2729.8,2729.0,0.449227]
[1739975520768,3.66417,2729.2,2728.8,1.1098]
[1739975520963,3.66422,2729.1,2728.8,1.1098]
[1739975521270,3.66382,2729.4,2728.8,1.1098]
[1739975521575,3.6636,2729.6,2728.9,3.66435]
[1739975521778,3.66361,2729.6,2728.9,3.66435]
[1739975521978,3.66361,2729.6,2728.9,0.477415]
[1739975522275,3.66333,2729.8,2728.9,4.141805]
[1739975522477,3.66375,2729.5,2728.9,0.477415]
[1739975522635,3.66375,2729.5,2728.9,4.141885]
[1739975522854,3.66384,2729.4,2728.9,0.477415]
[1739975523055,3.66327,2729.8,2729.1,3.66414]
[1739975523251,0.7665,2730.2,2729.5,3.66354]
[1739975523555,4.45387,2730.6,2729.7,0.8329]
[1739975523754,3.66269,2730.3,2729.7,0.8329]
[1739975524154,3.66263,2730.3,2729.7,0.8329]
[1739975524497,3.66271,2730.3,2729.7,0.8329]
[1739975524690,3.6628,2730.2,2729.7,0.8329]
[1739975524999,3.66289,2730.1,2729.7,0.8329]
[1739975525210,3.66271,2730.3,2729.7,0.8329]
[1739975525496,3.66275,2730.2,2729.7,0.8329]
[1739975525660,3.8108594,2730.0,2729.7,0.8329]
[1739975526514,0.1478194,2730.0,2729.7,0.8329]
[1739975526716,0.1478194,2730.0,2729.7,4.49623]
[1739975527017,3.66342,2729.7,2729.4,0.8309]
[1739975527157,0.1478194,2730.0,2729.4,0.8309]
[1739975527351,0.1478194,2730.0,2729.6,3.66352]
[1739975527556,0.1478194,2730.0,2729.5,3.66358]
[1739975527751,3.8108894,2730.0,2729.4,1.308673]
[1739975527969,3.8108894,2730.0,2729.4,0.8309]
[1739975527970,3.66325,2729.9,2729.4,0.8309]
[1739975528169,0.1478194,2730.0,2729.4,0.8309]
[1739975528499,0.1478194,2730.0,2729.5,0.03663555]
[1739975528704,0.1478194,2730.0,2729.4,4.49464]
[1739975528902,0.1478194,2730.0,2729.4,0.8309]
[1739975529116,0.1478194,2730.0,2729.7,4.42399]
[1739975529304,0.1478194,2730.0,2729.8,3.6632]
[1739975529482,0.1478194,2730.0,2729.9,3.66313]
[1739975529667,0.1478194,2730.0,2729.7,5.232688]
[1739975529865,0.1478194,2730.0,2729.7,0.7606]
[1739975530106,0.1478194,2730.0,2729.3,3.66392]
[1739975530107,3.66339,2729.8,2729.5,0.284]
[1739975530405,3.6634,2729.7,2729.5,0.284]
[1739975530911,3.66347,2729.7,2729.5,0.284]
[1739975531105,3.8109194,2730.0,2729.5,0.284]
[1739975531310,4.12113194,2729.9,2729.5,0.284]
[1739975531642,0.1478194,2730.0,2729.6,3.66343]
[1739975531802,0.1478194,2730.0,2729.7,0.7992]
[1739975531968,0.1478194,2730.0,2729.8,3.6632]
[1739975532170,0.1478194,2730.0,2729.9,3.66313]
[1739975532419,4.59636864,2731.5,2731.1,4.48732]
[1739975532420,0.74900985,2731.5,2731.1,4.48732]
[1739975532632,0.74900985,2731.5,2731.3,3.66126]
[1739975532836,0.74900985,2731.5,2731.3,4.504618]
[1739975532975,0.74900985,2731.5,2731.4,3.66112]
[1739975533170,3.6597,2732.5,2731.7,3.66063]
[1739975533494,3.66001,2732.3,2731.6,0.286]
[1739975533871,3.65965,2732.5,2731.5,0.8158]
[1739975534113,3.65965,2732.5,2730.6,3.75133431]
[1739975534114,3.66029,2732.1,2731.3,0.287]
[1739975534295,3.66051,2731.9,2731.3,0.287]
[1739975534497,0.8069,2732.3,2731.2,0.8158]
[1739975534709,0.8069,2731.9,2731.2,0.8158]
[1739975534871,0.1478194,2732.7,2731.6,3.66083]
[1739975535075,0.1478194,2732.7,2731.2,0.7824]
[1739975535458,0.1478194,2732.7,2731.4,3.8302]
[1739975535574,0.1478194,2732.7,2731.4,0.8302]
[1739975535909,3.6611,2731.5,2731.0,0.292]
[1739975536111,0.7553,2731.6,2731.0,0.292]
[1739975536283,3.66197,2730.8,2730.3,0.7789]
[1739975536475,3.66246,2730.4,2729.8,0.7789]
[1739975536673,0.366197,2730.7,2729.8,1.0709]
[1739975536911,0.7552,2731.0,2730.1,3.66274]
[1739975537097,0.7596,2731.5,2730.3,0.7852]
[1739975537272,0.005,2731.8,2730.9,0.7852]
[1739975537273,0.7646,2731.8,2730.9,0.7852]
[1739975537472,3.6611,2731.5,2730.9,0.7852]
[1739975537709,0.36611,2731.4,2730.9,0.7852]
[1739975537939,3.66072,2731.7,2730.9,0.7852]
[1739975538426,0.005,2731.8,2731.0,3.66165]
[1739975538572,3.66086,2731.6,2730.9,0.7852]
[1739975538770,3.66152,2731.1,2730.5,0.7613]
[1739975538980,0.366152,2731.1,2730.5,0.7613]
[1739975539212,3.6613,2731.3,2730.5,0.7613]
[1739975539412,3.66163,2731.1,2730.5,0.7613]
[1739975539578,3.66193,2730.8,2730.5,0.7613]
[1739975539779,3.66193,2730.9,2730.5,0.7613]
[1739975539974,0.732359,2730.9,2730.5,0.7613]
[1739975540187,3.66099,2731.5,2730.5,4.42362]
[1739975540389,3.6619,2730.9,2730.5,0.7613]
[1739975540593,0.8276,2731.5,2730.4,0.294]
[1739975540909,3.66232,2730.6,2730.1,1.067]
[1739975541310,3.66256,2730.4,2729.7,9.304]
[1739975541472,3.66272,2730.3,2729.7,9.304]
[1739975541680,3.66286,2730.1,2729.7,9.304]
[1739975541878,3.66272,2730.3,2729.7,9.304]
[1739975542112,3.66237,2730.5,2729.7,9.304]
[1739975542332,3.66219,2730.6,2729.4,0.776]
[1739975542491,0.7605,2730.4,2729.4,0.776]
[1739975542815,3.66329,2729.8,2729.0,4.07976049]
[1739975543032,3.7605,2730.4,2729.1,3.70076756]
[1739975543231,3.66297,2730.1,2729.0,4.44032]
[1739975543431,3.66263,2730.3,2729.2,3.66399]
[1739975543637,4.1415649,2730.3,2729.3,4.0339725]
[1739975543937,0.4789349,2730.3,2729.3,0.3700625]
[1739975544099,3.66341,2729.7,2729.1,0.296]
[1739975544743,3.66409,2729.2,2729.0,0.776]
[1739975545033,0.8153,2730.3,2729.0,0.776]
[1739975545232,0.8153,2730.3,2729.2,3.66397]